[Event "Early-Titled-Tuesday-Blitz-January-30-2024"]
[Site "Chess.com"]
[Date "2024.01.30"]
[Round "5"]
[White "wild3000"]
[Black "Iana_Shirova"]
[Result "0-1"]
[WhiteElo "2386"]
[BlackElo "2214"]
[TimeControl "180+1"]
[EndTime "9:00:07 PST"]
[Termination "Iana_Shirova won by checkmate"]

1. a3 {[%clk 0:03:00.3]} 1... e5 {[%clk 0:02:58.7]} 2. e3 {[%clk 0:02:58.8]}
2... Nf6 {[%clk 0:02:58.5]} 3. b4 {[%clk 0:02:58.8]} 3... g6 {[%clk 0:02:58.9]}
4. Bb2 {[%clk 0:02:58.8]} 4... d6 {[%clk 0:02:58.9]} 5. Nf3 {[%clk 0:02:56.7]}
5... Bg7 {[%clk 0:02:59]} 6. d4 {[%clk 0:02:57.3]} 6... Nbd7 {[%clk 0:02:54.5]}
7. dxe5 {[%clk 0:02:56.4]} 7... Ng4 {[%clk 0:02:55.1]} 8. Nbd2 {[%clk
0:02:48.9]} 8... O-O {[%clk 0:02:52.7]} 9. Rb1 {[%clk 0:02:37.5]} 9... Ngxe5
{[%clk 0:02:50.2]} 10. Be2 {[%clk 0:02:36.6]} 10... b6 {[%clk 0:02:44.9]} 11.
O-O {[%clk 0:02:31.9]} 11... Bb7 {[%clk 0:02:45]} 12. c4 {[%clk 0:02:24.1]}
12... a5 {[%clk 0:02:44.5]} 13. Qb3 {[%clk 0:02:15.6]} 13... axb4 {[%clk
0:02:22.6]} 14. axb4 {[%clk 0:02:16.5]} 14... f5 {[%clk 0:02:23.2]} 15. Nxe5
{[%clk 0:02:14.7]} 15... Nxe5 {[%clk 0:02:13.9]} 16. c5+ {[%clk 0:02:12.8]}
16... d5 {[%clk 0:02:11.9]} 17. Nf3 {[%clk 0:02:05.2]} 17... Qe7 {[%clk
0:01:49.2]} 18. cxb6 {[%clk 0:01:56.1]} 18... cxb6 {[%clk 0:01:45.1]} 19. Rfd1
{[%clk 0:01:56]} 19... Kh8 {[%clk 0:01:41.7]} 20. Nxe5 {[%clk 0:01:51.8]} 20...
Bxe5 {[%clk 0:01:42.5]} 21. Bxe5+ {[%clk 0:01:52.3]} 21... Qxe5 {[%clk
0:01:43.4]} 22. Qb2 {[%clk 0:01:45.7]} 22... Qxb2 {[%clk 0:01:28.8]} 23. Rxb2
{[%clk 0:01:46.6]} 23... Rfc8 {[%clk 0:01:28.6]} 24. h4 {[%clk 0:01:39]} 24...
Ra4 {[%clk 0:01:09.3]} 25. Rd4 {[%clk 0:01:38.3]} 25... Kg7 {[%clk 0:00:54.7]}
26. Bf3 {[%clk 0:01:18.3]} 26... Rd8 {[%clk 0:00:39.5]} 27. Rc2 {[%clk
0:01:12.5]} 27... Rd7 {[%clk 0:00:39.2]} 28. g4 {[%clk 0:01:09]} 28... Kf6
{[%clk 0:00:37.6]} 29. Kg2 {[%clk 0:01:07]} 29... Ke5 {[%clk 0:00:34]} 30. Kg3
{[%clk 0:01:05.8]} 30... h6 {[%clk 0:00:22.9]} 31. Be2 {[%clk 0:01:05.5]} 31...
Ra3 {[%clk 0:00:19.4]} 32. Bb5 {[%clk 0:01:00.9]} 32... f4+ {[%clk 0:00:19.3]}
33. Rxf4 {[%clk 0:00:59.6]} 33... Re7 {[%clk 0:00:16.2]} 34. Rd4 {[%clk
0:00:56.2]} 34... g5 {[%clk 0:00:16.1]} 35. hxg5 {[%clk 0:00:55.5]} 35... hxg5
{[%clk 0:00:17]} 36. Rc1 {[%clk 0:00:40.3]} 36... Rh7 {[%clk 0:00:17.1]} 37. Bc6
{[%clk 0:00:29.2]} 37... Bxc6 {[%clk 0:00:16.7]} 38. Rxc6 {[%clk 0:00:29.1]}
38... Ra1 {[%clk 0:00:17.6]} 39. Kf3 {[%clk 0:00:23.9]} 39... Rh3+ {[%clk
0:00:15.6]} 40. Ke2 {[%clk 0:00:24]} 40... Ra2+ {[%clk 0:00:14.6]} 41. Rd2
{[%clk 0:00:23.9]} 41... Rxd2+ {[%clk 0:00:13.5]} 42. Kxd2 {[%clk 0:00:24.1]}
42... Rh4 {[%clk 0:00:14.4]} 43. Rxb6 {[%clk 0:00:19.4]} 43... Rxg4 {[%clk
0:00:14.4]} 44. b5 {[%clk 0:00:19.3]} 44... Rb4 {[%clk 0:00:14.2]} 45. Kc3
{[%clk 0:00:19.5]} 45... Rb1 {[%clk 0:00:14]} 46. Kc2 {[%clk 0:00:19]} 46... Rb4
{[%clk 0:00:13.6]} 47. Kc3 {[%clk 0:00:19.2]} 47... Rb1 {[%clk 0:00:13.3]} 48.
f3 {[%clk 0:00:18.1]} 48... Rc1+ {[%clk 0:00:12.2]} 49. Kd3 {[%clk 0:00:17.4]}
49... Rd1+ {[%clk 0:00:12.1]} 50. Ke2 {[%clk 0:00:17.4]} 50... Rb1 {[%clk
0:00:12.1]} 51. Kf2 {[%clk 0:00:16.3]} 51... Rb2+ {[%clk 0:00:10.8]} 52. Kg3
{[%clk 0:00:16.3]} 52... Rb4 {[%clk 0:00:11.3]} 53. Rb8 {[%clk 0:00:15.9]} 53...
Rb3 {[%clk 0:00:08.8]} 54. b6 {[%clk 0:00:14.7]} 54... Kd6 {[%clk 0:00:08.6]}
55. b7 {[%clk 0:00:13.7]} 55... Kc7 {[%clk 0:00:08.7]} 56. Rd8 {[%clk
0:00:09.6]} 56... Kxd8 {[%clk 0:00:08.2]} 57. Kg4 {[%clk 0:00:09.1]} 57... Rxb7
{[%clk 0:00:08.2]} 58. Kxg5 {[%clk 0:00:09.4]} 58... Ke7 {[%clk 0:00:08.9]} 59.
Kf5 {[%clk 0:00:10.3]} 59... Rb5 {[%clk 0:00:09.4]} 60. Ke5 {[%clk 0:00:10.4]}
60... Ra5 {[%clk 0:00:09.5]} 61. f4 {[%clk 0:00:10.8]} 61... Kf7 {[%clk
0:00:09.6]} 62. f5 {[%clk 0:00:11.1]} 62... Rb5 {[%clk 0:00:09]} 63. Kd4 {[%clk
0:00:09.8]} 63... Kf6 {[%clk 0:00:08.7]} 64. e4 {[%clk 0:00:10.1]} 64... dxe4
{[%clk 0:00:08.7]} 65. Kxe4 {[%clk 0:00:11]} 65... Re5+ {[%clk 0:00:09.1]} 66.
Kf4 {[%clk 0:00:10.6]} 66... Rxf5+ {[%clk 0:00:10]} 67. Ke4 {[%clk 0:00:11.5]}
67... Ra5 {[%clk 0:00:09]} 68. Kd4 {[%clk 0:00:12.4]} 68... Rh5 {[%clk
0:00:09.2]} 69. Ke4 {[%clk 0:00:12.6]} 69... Kg6 {[%clk 0:00:09.6]} 70. Kf4
{[%clk 0:00:12.8]} 70... Rb5 {[%clk 0:00:07.6]} 71. Ke4 {[%clk 0:00:13.7]} 71...
Kf6 {[%clk 0:00:07.9]} 72. Kd4 {[%clk 0:00:14.6]} 72... Ke6 {[%clk 0:00:08.3]}
73. Kc4 {[%clk 0:00:15.1]} 73... Rf5 {[%clk 0:00:08.8]} 74. Kd4 {[%clk 0:00:16]}
74... Rh5 {[%clk 0:00:08.2]} 75. Kd3 {[%clk 0:00:15.9]} 75... Rh4 {[%clk
0:00:07.9]} 76. Ke3 {[%clk 0:00:15.9]} 76... Kf5 {[%clk 0:00:08.2]} 77. Kd3
{[%clk 0:00:15.5]} 77... Ke5 {[%clk 0:00:08]} 78. Kc3 {[%clk 0:00:15.8]} 78...
Kd5 {[%clk 0:00:08.1]} 79. Kd3 {[%clk 0:00:15.7]} 79... Rh3+ {[%clk 0:00:08.2]}
80. Ke2 {[%clk 0:00:16.6]} 80... Kd4 {[%clk 0:00:08.4]} 81. Kd2 {[%clk
0:00:17.5]} 81... Rh2+ {[%clk 0:00:08.6]} 82. Ke1 {[%clk 0:00:17.7]} 82... Kd3
{[%clk 0:00:09.1]} 83. Kf1 {[%clk 0:00:17.6]} 83... Ra2 {[%clk 0:00:09.1]} 84.
Ke1 {[%clk 0:00:17.6]} 84... Rb2 {[%clk 0:00:09.8]} 85. Kf1 {[%clk 0:00:17.2]}
85... Ke3 {[%clk 0:00:10.2]} 86. Kg1 {[%clk 0:00:17.6]} 86... Kf3 {[%clk
0:00:10.6]} 87. Kf1 {[%clk 0:00:18.5]} 87... Rb1# {[%clk 0:00:10.8]} 0-1

[Event "Early-Titled-Tuesday-Blitz-January-30-2024"]
[Site "Chess.com"]
[Date "2024.01.30"]
[Round "5"]
[White "Sam_ChessMood"]
[Black "vishwa_vijeta"]
[Result "1/2-1/2"]
[WhiteElo "2896"]
[BlackElo "2553"]
[TimeControl "180+1"]
[EndTime "9:01:01 PST"]
[Termination "Game drawn by repetition"]

1. d4 {[%clk 0:03:00]} 1... Nf6 {[%clk 0:02:53.6]} 2. c4 {[%clk 0:02:59.7]} 2...
c5 {[%clk 0:02:53.2]} 3. d5 {[%clk 0:02:59.4]} 3... b5 {[%clk 0:02:53.3]} 4.
cxb5 {[%clk 0:02:59.5]} 4... a6 {[%clk 0:02:52.3]} 5. e3 {[%clk 0:02:59.8]} 5...
e6 {[%clk 0:02:39.3]} 6. Nc3 {[%clk 0:02:55]} 6... exd5 {[%clk 0:02:36]} 7. Nxd5
{[%clk 0:02:55.1]} 7... Bb7 {[%clk 0:02:33.6]} 8. e4 {[%clk 0:02:17]} 8... axb5
{[%clk 0:02:24.3]} 9. Bg5 {[%clk 0:02:14.1]} 9... Qa5+ {[%clk 0:02:15.4]} 10.
Bd2 {[%clk 0:02:13.6]} 10... Qd8 {[%clk 0:02:08.8]} 11. Bxb5 {[%clk 0:02:00.9]}
11... Nxd5 {[%clk 0:02:02.9]} 12. exd5 {[%clk 0:02:00.6]} 12... Bxd5 {[%clk
0:02:02.7]} 13. Nf3 {[%clk 0:02:00.4]} 13... Be7 {[%clk 0:02:01.9]} 14. O-O
{[%clk 0:01:58.9]} 14... O-O {[%clk 0:02:00.6]} 15. a4 {[%clk 0:01:41.6]} 15...
Bb7 {[%clk 0:01:51.3]} 16. Re1 {[%clk 0:01:32.4]} 16... d5 {[%clk 0:01:46.5]}
17. Ne5 {[%clk 0:01:32.3]} 17... Bf6 {[%clk 0:01:39.1]} 18. Rc1 {[%clk
0:01:27.8]} 18... c4 {[%clk 0:01:20.6]} 19. Bb4 {[%clk 0:01:25.2]} 19... Na6
{[%clk 0:01:05.8]} 20. Bxf8 {[%clk 0:01:23.9]} 20... Qxf8 {[%clk 0:01:05.5]} 21.
Nd7 {[%clk 0:01:23.2]} 21... Qd6 {[%clk 0:01:05.1]} 22. Nxf6+ {[%clk 0:01:07.9]}
22... Qxf6 {[%clk 0:01:04.3]} 23. b3 {[%clk 0:01:08.2]} 23... Nc5 {[%clk
0:00:53.1]} 24. bxc4 {[%clk 0:01:07.1]} 24... d4 {[%clk 0:00:52.3]} 25. a5
{[%clk 0:00:52.8]} 25... g6 {[%clk 0:00:45.4]} 26. a6 {[%clk 0:00:44]} 26...
Nxa6 {[%clk 0:00:37.3]} 27. Ra1 {[%clk 0:00:42.4]} 27... Rd8 {[%clk 0:00:31]}
28. Bxa6 {[%clk 0:00:36.2]} 28... Bxa6 {[%clk 0:00:28.7]} 29. c5 {[%clk
0:00:36.4]} 29... Bb7 {[%clk 0:00:26.7]} 30. Qd3 {[%clk 0:00:32.6]} 30... Qc6
{[%clk 0:00:24.7]} 31. f3 {[%clk 0:00:31.2]} 31... Qxc5 {[%clk 0:00:24.5]} 32.
Rac1 {[%clk 0:00:31.2]} 32... Qd6 {[%clk 0:00:24.4]} 33. Qd2 {[%clk 0:00:24.5]}
33... d3 {[%clk 0:00:23.3]} 34. h3 {[%clk 0:00:20.3]} 34... Bxf3 {[%clk
0:00:16.2]} 35. Re3 {[%clk 0:00:10.5]} 35... Be2 {[%clk 0:00:12.9]} 36. Re1
{[%clk 0:00:04.7]} 36... Qd4 {[%clk 0:00:12.3]} 37. Rxe2 {[%clk 0:00:03.8]}
37... dxe2 {[%clk 0:00:11.8]} 38. Qxd4 {[%clk 0:00:03.5]} 38... Rxd4 {[%clk
0:00:11]} 39. Rxe2 {[%clk 0:00:03.6]} 39... f5 {[%clk 0:00:11.1]} 40. Kf2 {[%clk
0:00:04]} 40... Kf7 {[%clk 0:00:10.6]} 41. Ra2 {[%clk 0:00:02.6]} 41... h5
{[%clk 0:00:09.6]} 42. Kf3 {[%clk 0:00:02.3]} 42... h4 {[%clk 0:00:08.6]} 43.
Ra3 {[%clk 0:00:02.4]} 43... Kf6 {[%clk 0:00:08]} 44. Kf2 {[%clk 0:00:03]} 44...
Kg5 {[%clk 0:00:07.1]} 45. Ra6 {[%clk 0:00:03.2]} 45... Re4 {[%clk 0:00:04.3]}
46. Rb6 {[%clk 0:00:03.5]} 46... Rf4+ {[%clk 0:00:04]} 47. Ke3 {[%clk
0:00:03.7]} 47... Re4+ {[%clk 0:00:01.2]} 48. Kf3 {[%clk 0:00:04]} 48... Re5
{[%clk 0:00:00.9]} 49. Rc6 {[%clk 0:00:03.9]} 49... Re4 {[%clk 0:00:01.5]} 50.
Rd6 {[%clk 0:00:04.2]} 50... Rf4+ {[%clk 0:00:00.8]} 51. Ke3 {[%clk 0:00:03.9]}
51... Re4+ {[%clk 0:00:01.7]} 52. Kf2 {[%clk 0:00:04.4]} 52... Rf4+ {[%clk
0:00:02.5]} 53. Kg1 {[%clk 0:00:04.8]} 53... Re4 {[%clk 0:00:03.3]} 54. Rd8
{[%clk 0:00:05]} 54... Rf4 {[%clk 0:00:04.1]} 55. Rh8 {[%clk 0:00:04.3]} 55...
Re4 {[%clk 0:00:05]} 56. Ra8 {[%clk 0:00:04.3]} 56... Rf4 {[%clk 0:00:05.9]} 57.
Ra3 {[%clk 0:00:04.2]} 57... Re4 {[%clk 0:00:06.8]} 58. Kf2 {[%clk 0:00:03.9]}
58... Kf4 {[%clk 0:00:07.7]} 59. Ra6 {[%clk 0:00:03.4]} 59... g5 {[%clk
0:00:08.4]} 60. Ra3 {[%clk 0:00:03.6]} 60... g4 {[%clk 0:00:08.5]} 61. hxg4
{[%clk 0:00:03.2]} 61... fxg4 {[%clk 0:00:09.4]} 62. Ra8 {[%clk 0:00:02.8]}
62... Rb4 {[%clk 0:00:09]} 63. Rf8+ {[%clk 0:00:02.2]} 63... Ke4 {[%clk
0:00:09.2]} 64. Re8+ {[%clk 0:00:02.6]} 64... Kf5 {[%clk 0:00:08.9]} 65. Rf8+
{[%clk 0:00:03]} 65... Kg5 {[%clk 0:00:08.9]} 66. Rg8+ {[%clk 0:00:03.3]} 66...
Kh5 {[%clk 0:00:09.1]} 67. Rh8+ {[%clk 0:00:03.7]} 67... Kg6 {[%clk 0:00:09.2]}
68. Rg8+ {[%clk 0:00:03.9]} 68... Kh7 {[%clk 0:00:09.7]} 69. Rf8 {[%clk
0:00:03.3]} 69... Rb2+ {[%clk 0:00:09.5]} 70. Kf1 {[%clk 0:00:03.7]} 70... Kg6
{[%clk 0:00:09.6]} 71. Rg8+ {[%clk 0:00:03.5]} 71... Kf5 {[%clk 0:00:09.6]} 72.
Rh8 {[%clk 0:00:03.5]} 72... Kf4 {[%clk 0:00:09.2]} 73. Rxh4 {[%clk 0:00:03.1]}
73... Kg3 {[%clk 0:00:09.4]} 74. Rh8 {[%clk 0:00:03.3]} 74... Rb1+ {[%clk
0:00:09.5]} 75. Ke2 {[%clk 0:00:03.6]} 75... Kxg2 {[%clk 0:00:09.6]} 76. Rg8
{[%clk 0:00:04]} 76... g3 {[%clk 0:00:09.5]} 77. Rh8 {[%clk 0:00:04.5]} 77...
Kg1 {[%clk 0:00:07.5]} 78. Rg8 {[%clk 0:00:04]} 78... g2 {[%clk 0:00:07]} 79.
Rh8 {[%clk 0:00:04.4]} 79... Rf1 {[%clk 0:00:06.4]} 80. Rh7 {[%clk 0:00:03.8]}
80... Rf6 {[%clk 0:00:04.2]} 81. Rh8 {[%clk 0:00:04.1]} 81... Re6+ {[%clk
0:00:04.1]} 82. Kd2 {[%clk 0:00:04.6]} 82... Rf6 {[%clk 0:00:01.1]} 83. Ke2
{[%clk 0:00:04]} 83... Re6+ {[%clk 0:00:01.9]} 84. Kd2 {[%clk 0:00:04.4]} 84...
Kf2 {[%clk 0:00:02.3]} 85. Rf8+ {[%clk 0:00:03.6]} 85... Kg1 {[%clk 0:00:01.6]}
86. Rh8 {[%clk 0:00:03]} 1/2-1/2

[Event "Early-Titled-Tuesday-Blitz-January-30-2024"]
[Site "Chess.com"]
[Date "2024.01.30"]
[Round "6"]
[White "PolandHussars"]
[Black "dretch"]
[Result "0-1"]
[WhiteElo "2606"]
[BlackElo "2800"]
[TimeControl "180+1"]
[EndTime "9:03:35 PST"]
[Termination "dretch won by resignation"]

1. e4 {[%clk 0:03:00.9]} 1... e6 {[%clk 0:03:00]} 2. Nc3 {[%clk 0:03:00.7]} 2...
d5 {[%clk 0:03:00.9]} 3. d4 {[%clk 0:03:01]} 3... Nf6 {[%clk 0:02:59.7]} 4. e5
{[%clk 0:03:01.3]} 4... Nfd7 {[%clk 0:02:59.5]} 5. Nce2 {[%clk 0:03:02]} 5... c5
{[%clk 0:03:00.2]} 6. c3 {[%clk 0:03:02.6]} 6... Nc6 {[%clk 0:03:00.4]} 7. Nf3
{[%clk 0:03:03.1]} 7... b5 {[%clk 0:02:51.3]} 8. Nf4 {[%clk 0:03:02.9]} 8... Qb6
{[%clk 0:02:49.6]} 9. g3 {[%clk 0:03:00.3]} 9... b4 {[%clk 0:02:49.1]} 10. Bh3
{[%clk 0:03:00.6]} 10... Ba6 {[%clk 0:02:48.2]} 11. Ng5 {[%clk 0:02:54.3]} 11...
bxc3 {[%clk 0:02:46]} 12. Nxf7 {[%clk 0:02:47.4]} 12... cxb2 {[%clk 0:02:42.9]}
13. Nxh8 {[%clk 0:02:19.5]} 13... bxa1=Q {[%clk 0:02:39.1]} 14. Bxe6 {[%clk
0:01:52.6]} 14... Qb4+ {[%clk 0:02:33.4]} 0-1

[Event "Early-Titled-Tuesday-Blitz-January-30-2024"]
[Site "Chess.com"]
[Date "2024.01.30"]
[Round "6"]
[White "publicaccountcze"]
[Black "GMT4114"]
[Result "0-1"]
[WhiteElo "2283"]
[BlackElo "1950"]
[TimeControl "180+1"]
[EndTime "9:04:25 PST"]
[Termination "GMT4114 won by resignation"]

1. e4 {[%clk 0:02:55.4]} 1... e6 {[%clk 0:02:59.9]} 2. d4 {[%clk 0:02:54.5]}
2... d5 {[%clk 0:03:00.5]} 3. Nd2 {[%clk 0:02:55.2]} 3... h6 {[%clk 0:03:00.2]}
4. Ngf3 {[%clk 0:02:52.1]} 4... Nf6 {[%clk 0:03:00]} 5. Bd3 {[%clk 0:02:47.8]}
5... c5 {[%clk 0:02:58.9]} 6. c3 {[%clk 0:02:48]} 6... cxd4 {[%clk 0:02:32.5]}
7. Nxd4 {[%clk 0:02:19.8]} 7... dxe4 {[%clk 0:02:17.4]} 8. Nxe4 {[%clk
0:02:19.2]} 8... Bd7 {[%clk 0:02:17.6]} 9. O-O {[%clk 0:02:17.1]} 9... Nc6
{[%clk 0:02:15.7]} 10. Be3 {[%clk 0:02:16.7]} 10... Be7 {[%clk 0:02:12]} 11. Qd2
{[%clk 0:02:03.3]} 11... Ne5 {[%clk 0:02:11.5]} 12. f4 {[%clk 0:01:54.1]} 12...
Nxd3 {[%clk 0:02:10.4]} 13. Qxd3 {[%clk 0:01:55]} 13... O-O {[%clk 0:02:04.3]}
14. f5 {[%clk 0:01:51]} 14... exf5 {[%clk 0:01:59.9]} 15. Nxf5 {[%clk
0:01:49.6]} 15... Bxf5 {[%clk 0:02:00.1]} 16. Rxf5 {[%clk 0:01:49.2]} 16... Qxd3
{[%clk 0:01:59.6]} 0-1

[Event "Early-Titled-Tuesday-Blitz-January-30-2024"]
[Site "Chess.com"]
[Date "2024.01.30"]
[Round "6"]
[White "Glidzhian_Gor"]
[Black "Resignify"]
[Result "1-0"]
[WhiteElo "2569"]
[BlackElo "2274"]
[TimeControl "180+1"]
[EndTime "9:04:49 PST"]
[Termination "Glidzhian_Gor won by resignation"]

1. e4 {[%clk 0:03:00.9]} 1... d6 {[%clk 0:02:58.4]} 2. d4 {[%clk 0:03:01]} 2...
Nf6 {[%clk 0:02:58.3]} 3. Nc3 {[%clk 0:03:01.9]} 3... g6 {[%clk 0:02:58.3]} 4.
Nf3 {[%clk 0:03:02.8]} 4... Bg7 {[%clk 0:02:58.4]} 5. h4 {[%clk 0:03:03.4]} 5...
h5 {[%clk 0:02:47.1]} 6. Bg5 {[%clk 0:03:00.6]} 6... Bg4 {[%clk 0:02:43.8]} 7.
Qd2 {[%clk 0:03:00.3]} 7... Bxf3 {[%clk 0:02:33.1]} 8. gxf3 {[%clk 0:03:01.2]}
8... Nc6 {[%clk 0:02:26.4]} 9. d5 {[%clk 0:03:00.1]} 9... Ne5 {[%clk 0:02:24.3]}
10. Be2 {[%clk 0:03:00.8]} 10... c6 {[%clk 0:02:16.9]} 11. f4 {[%clk 0:02:55.4]}
11... Ned7 {[%clk 0:02:13.1]} 12. dxc6 {[%clk 0:02:49.2]} 12... bxc6 {[%clk
0:02:12.6]} 13. O-O-O {[%clk 0:02:50.1]} 13... Qa5 {[%clk 0:02:08.4]} 14. Bc4
{[%clk 0:02:46.1]} 14... Rb8 {[%clk 0:01:51.7]} 15. Bb3 {[%clk 0:02:35.2]} 15...
Nc5 {[%clk 0:01:45.3]} 16. e5 {[%clk 0:02:31.9]} 16... Nxb3+ {[%clk 0:01:30]}
17. cxb3 {[%clk 0:02:32.8]} 17... dxe5 {[%clk 0:01:27.2]} 18. fxe5 {[%clk
0:02:33.7]} 18... Qxe5 {[%clk 0:01:05.2]} 19. Bf4 {[%clk 0:02:33.9]} 1-0

[Event "Early-Titled-Tuesday-Blitz-January-30-2024"]
[Site "Chess.com"]
[Date "2024.01.30"]
[Round "6"]
[White "Harry_Rakkel"]
[Black "Chessdreamer2020"]
[Result "1-0"]
[WhiteElo "2717"]
[BlackElo "2554"]
[TimeControl "180+1"]
[EndTime "9:05:02 PST"]
[Termination "Harry_Rakkel won by resignation"]

1. e4 {[%clk 0:03:00.9]} 1... c6 {[%clk 0:02:59.6]} 2. d4 {[%clk 0:02:59]} 2...
d5 {[%clk 0:02:59.7]} 3. exd5 {[%clk 0:02:59.2]} 3... cxd5 {[%clk 0:03:00.6]} 4.
Bd3 {[%clk 0:02:59.1]} 4... Nc6 {[%clk 0:03:00.4]} 5. c3 {[%clk 0:02:59.1]} 5...
Nf6 {[%clk 0:03:00.6]} 6. Bf4 {[%clk 0:02:58.1]} 6... g6 {[%clk 0:02:58.6]} 7.
Nf3 {[%clk 0:02:56]} 7... Bg4 {[%clk 0:02:58.3]} 8. O-O {[%clk 0:02:55.5]} 8...
e6 {[%clk 0:02:56.5]} 9. Nbd2 {[%clk 0:02:54.3]} 9... Bd6 {[%clk 0:02:56]} 10.
Bg3 {[%clk 0:02:51]} 10... Kf8 {[%clk 0:02:52.9]} 11. Re1 {[%clk 0:02:49.6]}
11... Kg7 {[%clk 0:02:51.2]} 12. Qe2 {[%clk 0:02:48.4]} 12... a6 {[%clk
0:02:47.8]} 13. Qe3 {[%clk 0:02:47.2]} 13... h6 {[%clk 0:02:36.9]} 14. Ne5
{[%clk 0:02:42.2]} 14... Bf5 {[%clk 0:02:36.6]} 15. Bxf5 {[%clk 0:02:36.9]}
15... gxf5 {[%clk 0:02:37.5]} 16. Nxf7 {[%clk 0:02:31]} 16... Kxf7 {[%clk
0:02:10.2]} 17. Qxe6+ {[%clk 0:02:29.9]} 17... Kg7 {[%clk 0:02:10.7]} 18. Qxd6
{[%clk 0:02:28.6]} 18... Qxd6 {[%clk 0:02:10.3]} 19. Bxd6 {[%clk 0:02:28.4]}
19... Ne4 {[%clk 0:02:05.5]} 20. Nxe4 {[%clk 0:02:27.6]} 20... fxe4 {[%clk
0:02:05.3]} 21. Re3 {[%clk 0:02:24.1]} 21... Kf7 {[%clk 0:02:02.7]} 22. Rae1
{[%clk 0:02:21.6]} 22... b5 {[%clk 0:01:59]} 23. f3 {[%clk 0:02:19.8]} 23... Na5
{[%clk 0:01:45.3]} 24. b3 {[%clk 0:02:18.9]} 24... Rac8 {[%clk 0:01:34.9]} 25.
fxe4 {[%clk 0:02:16.8]} 25... dxe4 {[%clk 0:01:34.5]} 26. Rxe4 {[%clk
0:02:16.1]} 26... Rxc3 {[%clk 0:01:34.3]} 27. Bb4 {[%clk 0:02:15.5]} 27... Rc2
{[%clk 0:01:27.4]} 28. Bxa5 {[%clk 0:02:14.5]} 28... Rg8 {[%clk 0:01:27.9]} 29.
Rf4+ {[%clk 0:02:13.6]} 1-0

[Event "Early-Titled-Tuesday-Blitz-January-30-2024"]
[Site "Chess.com"]
[Date "2024.01.30"]
[Round "6"]
[White "Arimin1329"]
[Black "DestroyerJohny"]
[Result "1-0"]
[WhiteElo "2408"]
[BlackElo "2237"]
[TimeControl "180+1"]
[EndTime "9:05:20 PST"]
[Termination "Arimin1329 won by resignation"]

1. Nf3 {[%clk 0:03:00.9]} 1... d5 {[%clk 0:02:58.9]} 2. g3 {[%clk 0:03:01.8]}
2... Nf6 {[%clk 0:02:56.8]} 3. Bg2 {[%clk 0:03:02.1]} 3... c5 {[%clk 0:02:55.1]}
4. O-O {[%clk 0:03:03]} 4... Nc6 {[%clk 0:02:53.5]} 5. d4 {[%clk 0:03:03.9]}
5... e6 {[%clk 0:02:47.3]} 6. c4 {[%clk 0:03:02.4]} 6... dxc4 {[%clk 0:02:47.6]}
7. Ne5 {[%clk 0:03:01.4]} 7... Bd7 {[%clk 0:02:47.1]} 8. Nxc6 {[%clk 0:02:55.1]}
8... Bxc6 {[%clk 0:02:47.4]} 9. Bxc6+ {[%clk 0:02:55.5]} 9... bxc6 {[%clk
0:02:47.4]} 10. dxc5 {[%clk 0:02:53.1]} 10... Qxd1 {[%clk 0:02:46.8]} 11. Rxd1
{[%clk 0:02:54]} 11... Bxc5 {[%clk 0:02:46.5]} 12. Bd2 {[%clk 0:02:50.5]} 12...
Rb8 {[%clk 0:02:36.4]} 13. Bc3 {[%clk 0:02:48.6]} 13... O-O {[%clk 0:02:19.4]}
14. Nd2 {[%clk 0:02:47.1]} 14... Nd5 {[%clk 0:02:11.8]} 15. Be5 {[%clk
0:02:44.6]} 15... Rb4 {[%clk 0:02:00.6]} 16. a3 {[%clk 0:02:43.4]} 16... Ra4
{[%clk 0:01:44.4]} 17. Rac1 {[%clk 0:02:43.4]} 17... f6 {[%clk 0:01:41.6]} 18.
Bf4 {[%clk 0:02:33.2]} 18... e5 {[%clk 0:01:38.2]} 19. e4 {[%clk 0:02:32.1]}
19... c3 {[%clk 0:01:13.3]} 20. exd5 {[%clk 0:02:30.3]} 20... cxb2 {[%clk
0:01:12.2]} 21. Rxc5 {[%clk 0:02:27.9]} 21... exf4 {[%clk 0:01:10.5]} 22. dxc6
{[%clk 0:02:24.8]} 22... Rxa3 {[%clk 0:01:06.2]} 23. c7 {[%clk 0:02:20.2]} 23...
Ra1 {[%clk 0:01:01.1]} 24. Rb1 {[%clk 0:02:20.5]} 24... Rc8 {[%clk 0:00:59.2]}
25. Kg2 {[%clk 0:02:18.9]} 25... fxg3 {[%clk 0:00:54.7]} 26. hxg3 {[%clk
0:02:18.4]} 26... a5 {[%clk 0:00:54.8]} 27. Rxb2 {[%clk 0:02:18.2]} 27... a4
{[%clk 0:00:53.1]} 28. Rb8 {[%clk 0:02:18.7]} 1-0

[Event "Early-Titled-Tuesday-Blitz-January-30-2024"]
[Site "Chess.com"]
[Date "2024.01.30"]
[Round "6"]
[White "esrosenberg"]
[Black "MoreChessJulia"]
[Result "1-0"]
[WhiteElo "2397"]
[BlackElo "2136"]
[TimeControl "180+1"]
[EndTime "9:05:30 PST"]
[Termination "esrosenberg won by resignation"]

1. c4 {[%clk 0:03:00.9]} 1... c5 {[%clk 0:03:00]} 2. g3 {[%clk 0:02:56.1]} 2...
Nc6 {[%clk 0:03:00.3]} 3. Bg2 {[%clk 0:02:56.4]} 3... g6 {[%clk 0:03:00.2]} 4.
Nc3 {[%clk 0:02:52.9]} 4... Bg7 {[%clk 0:03:00]} 5. a3 {[%clk 0:02:53.2]} 5...
d6 {[%clk 0:03:00]} 6. Nf3 {[%clk 0:02:53.2]} 6... Nf6 {[%clk 0:02:59.3]} 7. O-O
{[%clk 0:02:53.3]} 7... O-O {[%clk 0:02:59.1]} 8. d3 {[%clk 0:02:53.4]} 8... e6
{[%clk 0:02:56.5]} 9. Rb1 {[%clk 0:02:53.4]} 9... a6 {[%clk 0:02:56]} 10. b4
{[%clk 0:02:52.2]} 10... Rb8 {[%clk 0:02:50]} 11. bxc5 {[%clk 0:02:44]} 11...
dxc5 {[%clk 0:02:44.6]} 12. Bf4 {[%clk 0:02:44.6]} 12... Ra8 {[%clk 0:02:38.8]}
13. Na4 {[%clk 0:02:42.8]} 13... Qe7 {[%clk 0:02:31.2]} 14. Nb6 {[%clk
0:02:39.2]} 14... Ra7 {[%clk 0:02:27.9]} 15. Ne5 {[%clk 0:02:37.2]} 15... Nxe5
{[%clk 0:02:22.9]} 16. Bxe5 {[%clk 0:02:37.4]} 16... Nd7 {[%clk 0:02:22.7]} 17.
Bxg7 {[%clk 0:02:29.5]} 17... Kxg7 {[%clk 0:02:22.2]} 18. Nxc8 {[%clk
0:02:30.2]} 18... Rxc8 {[%clk 0:02:21.4]} 19. Rxb7 {[%clk 0:02:30.6]} 19... Rxb7
{[%clk 0:02:21]} 20. Bxb7 {[%clk 0:02:31.5]} 20... Rb8 {[%clk 0:02:20.2]} 21.
Bxa6 {[%clk 0:02:30.3]} 21... Ra8 {[%clk 0:02:20.4]} 22. Qa1+ {[%clk 0:02:25.4]}
22... f6 {[%clk 0:02:17.8]} 23. Bb7 {[%clk 0:02:25]} 23... Ra7 {[%clk
0:02:08.4]} 24. Bg2 {[%clk 0:02:25.1]} 24... e5 {[%clk 0:01:57.2]} 25. Rb1
{[%clk 0:02:22.6]} 25... Nf8 {[%clk 0:01:53.7]} 26. Bd5 {[%clk 0:02:16.9]} 26...
Ne6 {[%clk 0:01:53.1]} 27. Bxe6 {[%clk 0:02:17.1]} 27... Qxe6 {[%clk 0:01:53]}
28. a4 {[%clk 0:02:16.7]} 28... Qc6 {[%clk 0:01:47.7]} 29. Rb5 {[%clk
0:02:10.8]} 29... Kf7 {[%clk 0:01:44.7]} 30. Qa3 {[%clk 0:02:10.3]} 30... Rc7
{[%clk 0:01:36.8]} 31. a5 {[%clk 0:02:05.7]} 31... Ke7 {[%clk 0:01:31.1]} 32.
Rb6 {[%clk 0:01:44.9]} 1-0